fUSD/lending_fUSD_20240828
["ID","MTS","AMOUNT","RATE_DAILY","PERIOD"]
[336490365,1724877228059,-500.0,0.00038356,120]
[336490366,1724877228088,-807.75,0.00038356,120]
[336490367,1724877228116,-500.0,0.00038356,120]
[336490368,1724877228146,-500.0,0.00038356,120]
[336490369,1724877228173,-500.0,0.00038356,120]
[336490370,1724877228200,-500.0,0.00038356,120]
[336490371,1724877228228,-859.46,0.00038356,120]
[336490372,1724877228256,-515.71797273,0.00038356,120]
[336490373,1724877228284,-3921.9,0.00038356,120]
[336490374,1724877228312,-576.61038152,0.00038356,120]
[336490375,1724877228345,-300.19727454,0.00038356,120]
[336490376,1724877228372,-500.0,0.00038356,120]
[336490377,1724877228401,-500.0,0.00038356,120]
[336490378,1724877228429,-500.0,0.00038356,120]
[336490379,1724877228457,-500.0,0.00038356,120]
[336490380,1724877228484,-500.0,0.00038356,120]
[336490381,1724877228511,-500.0,0.00038356,120]
[336490382,1724877228538,-913.04,0.00038356,120]
[336490383,1724877228564,-500.0,0.00038356,120]
[336490384,1724877228592,-500.0,0.00038356,120]
[336490385,1724877228618,-555.53,0.00038356,120]
[336490386,1724877228647,-500.0,0.00038356,120]
[336490387,1724877228674,-500.0,0.00038356,120]
[336490388,1724877228701,-5248.61,0.00038356,120]
[336490389,1724877228940,-500.0,0.00038356,120]
[336490390,1724877228969,-500.0,0.00038356,120]
[336490391,1724877228998,-629.06,0.00038356,120]
[336490392,1724877229025,-512.12773399,0.00038356,120]
[336490393,1724877229053,-3477.12,0.00038356,120]
[336490394,1724877229080,-1126.54,0.00038356,120]
[336490395,1724877229107,-590.3631538,0.00038356,120]
[336490396,1724877229135,-1717.58,0.00038356,120]
[336490397,1724877229161,-1552.91,0.00038356,120]
[336490398,1724877229189,-500.0,0.00038356,120]
[336490399,1724877229215,-500.0,0.00038356,120]
[336490400,1724877229241,-500.0,0.00038356,120]
[336490401,1724877229267,-528.32753991,0.00038356,120]
[336490402,1724877229294,-500.0,0.00038356,120]
[336490403,1724877229324,-1654.4,0.00038356,120]
[336490404,1724877229350,-500.0,0.00038356,120]
[336490405,1724877229378,-2522.61,0.00038356,120]
[336490406,1724877229406,-2339.24,0.00038356,120]
[336490407,1724877229433,-1542.02,0.00038356,120]
[336490408,1724877229461,-500.0,0.00038356,120]
[336490409,1724877229489,-500.0,0.00038356,120]
[336490410,1724877229516,-781.97,0.00038356,120]
[336490411,1724877229543,-500.0,0.00038356,120]
[336490412,1724877229570,-509.02021728,0.00038356,120]
[336490413,1724877229596,-564.3,0.00038356,120]
[336490414,1724877229623,-673.77,0.00038356,120]
[336490415,1724877229651,-776.56,0.00038356,120]
[336490416,1724877229676,-3090.37,0.00038356,120]
[336490417,1724877229702,-500.0,0.00038356,120]
[336490418,1724877229728,-4322.06,0.00038356,120]
[336490419,1724877229754,-500.0,0.00038356,120]
[336490420,1724877229780,-3147.94,0.00038356,120]
[336490421,1724877229807,-3772.86,0.00038356,120]
[336490422,1724877229833,-500.0,0.00038356,120]
[336490423,1724877229870,-509.58980705,0.00038356,120]
[336490424,1724877229916,-408.78996567,0.00038356,120]
[336490425,1724877229965,-500.0,0.00038356,120]
[336490426,1724877230015,-500.0,0.00038356,120]
[336490427,1724877230068,-1446.77,0.00038356,120]
[336490428,1724877230105,-500.0,0.00038356,120]
[336490429,1724877230132,-738.44,0.00038356,120]
[336490430,1724877230160,-500.0,0.00038356,120]
[336490431,1724877230187,-843.24,0.00038356,120]
[336490432,1724877230215,-3195.25,0.00038356,120]
[336490433,1724877230246,-500.0,0.00038356,120]
[336490434,1724877230275,-500.0,0.00038356,120]
[336490435,1724877230301,-300.0,0.00038356,120]
[336490436,1724877230343,-582.75,0.00038356,120]
[336490437,1724877230375,-500.0,0.00038356,120]
[336490438,1724877230405,-529.62837104,0.00038356,120]
[336490439,1724877230432,-1168.97,0.00038356,120]
[336490440,1724877230458,-500.0,0.00038356,120]
[336490441,1724877230484,-1231.52,0.00038356,120]
[336490442,1724877230510,-500.0,0.00038356,120]
[336490443,1724877230538,-500.0,0.00038356,120]
[336490444,1724877230564,-500.0,0.00038356,120]
[336490445,1724877230591,-2199.82,0.00038356,120]
[336490446,1724877230618,-2372.86,0.00038356,120]
[336490447,1724877230651,-548.24,0.00038356,120]
[336490448,1724877230681,-1493.13,0.00038356,120]
[336490449,1724877230709,-360.58195802,0.00038356,120]
[336490450,1724877230736,-500.0,0.00038356,120]
[336490451,1724877230763,-500.0,0.00038356,120]
[336490452,1724877230790,-500.0,0.00038356,120]
[336490453,1724877230817,-500.0,0.00038356,120]
[336490454,1724877230844,-1646.72,0.00038356,120]
[336490455,1724877230872,-522.4199486,0.00038356,120]
[336490456,1724877230905,-500.0,0.00038356,120]
[336490457,1724877230935,-4273.92,0.00038356,120]
[336490458,1724877230967,-359.64246612,0.00038356,120]
[336490459,1724877231000,-500.0,0.00038356,120]
[336490460,1724877231032,-500.0,0.00038356,120]
[336490461,1724877231062,-500.0,0.00038356,120]
[336490462,1724877231091,-500.0,0.00038356,120]
[336490463,1724877231118,-833.03,0.00038356,120]
[336490464,1724877231149,-833.03,0.00038356,120]
[336490465,1724877231178,-833.03,0.00038356,120]
[336490466,1724877231205,-833.03,0.00038356,120]
[336490467,1724877231233,-833.03,0.00038356,120]
[336490468,1724877231261,-551.45,0.00038356,120]
[336490469,1724877231290,-833.68,0.00038356,120]
[336490470,1724877231319,-1602.97,0.00038356,120]
[336490471,1724877231347,-833.03,0.00038356,120]
[336490472,1724877231376,-2101.67,0.00038356,120]
[336490473,1724877231407,-833.03,0.00038356,120]
[336490474,1724877231435,-833.03,0.00038356,120]
[336490475,1724877231463,-1804.35,0.00038356,120]
[336490476,1724877231491,-833.03,0.00038356,120]
[336490477,1724877231517,-833.03,0.00038356,120]
[336490478,1724877231544,-833.03,0.00038356,120]
[336490479,1724877231571,-833.03,0.00038356,120]
[336490480,1724877231600,-833.03,0.00038356,120]
[336490481,1724877231628,-833.03,0.00038356,120]
[336490482,1724877231659,-833.03,0.00038356,120]
[336490483,1724877231686,-500.0,0.00038356,120]
[336490484,1724877231714,-833.03,0.00038356,120]
[336490485,1724877231741,-500.0,0.00038356,120]
[336490486,1724877231769,-4031.24,0.00038356,120]
[336490487,1724877231796,-833.03,0.00038356,120]
[336490488,1724877231823,-500.0,0.00038356,120]
[336490489,1724877231852,-833.03,0.00038356,120]
[336490490,1724877231880,-833.03,0.00038356,120]
[336490491,1724877231918,-1224.54,0.00038356,120]
[336490492,1724877231945,-833.03,0.00038356,120]
[336490493,1724877231976,-833.03,0.00038356,120]
[336490494,1724877232231,-833.03,0.00038356,120]
[336490495,1724877232259,-500.0,0.00038356,120]
[336490496,1724877232286,-554.68,0.00038356,120]
[336490497,1724877232312,-833.03,0.00038356,120]
[336490498,1724877232341,-833.10395078,0.00038356,120]
[336490499,1724877232369,-2603.06,0.00038356,120]
[336490500,1724877232396,-500.0,0.00038356,120]
[336490501,1724877232424,-561.80387977,0.00038356,120]
[336490502,1724877232452,-500.0,0.00038356,120]
[336490503,1724877232477,-818.77,0.00038356,120]
[336490504,1724877232504,-607.04,0.00038356,120]
[336490505,1724877232529,-585.38,0.00038356,120]
[336490506,1724877232554,-501.01137996,0.00038356,120]
[336490507,1724877232580,-2541.0,0.00038356,120]
[336490508,1724877232605,-1315.7,0.00038356,120]
[336490509,1724877232631,-3487.84,0.00038356,120]
[336490510,1724877232659,-500.0,0.00038356,120]
[336490511,1724877232685,-524.25406837,0.00038356,120]
[336490512,1724877232712,-508.66735919,0.00038356,120]
[336490513,1724877232739,-876.36,0.00038356,120]
[336490514,1724877232765,-500.0,0.00038356,120]
[336490515,1724877232799,-554.4,0.00038356,120]
[336490516,1724877232826,-508.41341901,0.00038356,120]
[336490517,1724877232851,-500.0,0.00038356,120]
[336490518,1724877232878,-2017.91,0.00038356,120]
[336490519,1724877232910,-500.0,0.00038356,120]
[336490520,1724877232936,-511.59141348,0.00038356,120]
[336490521,1724877232963,-3610.88,0.00038356,120]
[336490522,1724877232989,-500.0,0.00038356,120]
[336490523,1724877233016,-1861.85,0.00038356,120]
[336490524,1724877233043,-500.0,0.00038356,120]
[336490525,1724877233069,-578.83110405,0.00038356,120]
[336490526,1724877233096,-960.31,0.00038356,120]
[336490527,1724877233123,-543.20308069,0.00038356,120]
[336490528,1724877233149,-1878.21,0.00038356,120]
[336490529,1724877233175,-897.42,0.00038356,120]
[336490530,1724877233200,-573.00746536,0.00038356,120]
[336490531,1724877233225,-3828.16,0.00038356,120]
[336490532,1724877233250,-981.7,0.00038356,120]
[336490533,1724877233276,-6283.78,0.00038356,120]
[336490534,1724877233301,-500.0,0.00038356,120]
[336490535,1724877233331,-500.0,0.00038356,120]
[336490536,1724877233357,-500.0,0.00038356,120]
[336490537,1724877233385,-500.0,0.00038356,120]
[336490538,1724877233416,-4174.03,0.00038356,120]
[336490539,1724877233442,-500.0,0.00038356,120]
[336490540,1724877233469,-518.56,0.00038356,120]
[336490541,1724877233497,-885.5,0.00038356,120]
[336490542,1724877233524,-500.0,0.00038356,120]
[336490543,1724877233552,-1202.02,0.00038356,120]
[336490544,1724877233578,-500.0,0.00038356,120]
[336490545,1724877233604,-2869.16,0.00038356,120]
[336490546,1724877233630,-500.0,0.00038356,120]
[336490547,1724877233659,-500.0,0.00038356,120]
[336490548,1724877233686,-508.34066102,0.00038356,120]
[336490549,1724877233713,-2146.61,0.00038356,120]
[336490550,1724877233741,-2452.46,0.00038356,120]
[336490551,1724877233768,-500.0,0.00038356,120]
[336490552,1724877233795,-1906.44,0.00038356,120]
[336490553,1724877233821,-638.3,0.00038356,120]
[336490554,1724877233850,-619.05,0.00038356,120]
[336490555,1724877233877,-500.0,0.00038356,120]
[336490556,1724877233907,-657.06,0.00038356,120]
[336490557,1724877233935,-500.0,0.00038356,120]
[336490558,1724877233962,-500.0,0.00038356,120]
[336490559,1724877233989,-500.0,0.00038356,120]
[336490560,1724877234017,-3724.88,0.00038356,120]
[336490561,1724877234044,-932.86,0.00038356,120]
[336490562,1724877234070,-1814.39,0.00038356,120]
[336490563,1724877234096,-500.0,0.00038356,120]
[336490564,1724877234125,-500.0,0.00038356,120]
[336490565,1724877234154,-530.4172435,0.00038356,120]
[336490566,1724877234181,-1305.88,0.00038356,120]
[336490567,1724877234208,-1837.49,0.00038356,120]
[336490568,1724877234234,-500.0,0.00038356,120]
[336490569,1724877234259,-500.0,0.00038356,120]
[336490570,1724877234286,-500.0,0.00038356,120]
[336490571,1724877234315,-1234.41,0.00038356,120]
[336490572,1724877234341,-500.0,0.00038356,120]
[336490573,1724877234369,-2141.06,0.00038356,120]
[336490574,1724877234398,-500.0,0.00038356,120]
[336490575,1724877234424,-516.46359497,0.00038356,120]
[336490576,1724877234451,-500.0,0.00038356,120]
[336490577,1724877234482,-500.0,0.00038356,120]
[336490578,1724877234509,-500.0,0.00038356,120]
[336490579,1724877234536,-969.8,0.00038356,120]
[336490580,1724877234564,-500.0,0.00038356,120]
[336490581,1724877234591,-500.0,0.00038356,120]
[336490582,1724877234623,-500.0,0.00038356,120]
[336490583,1724877234651,-886.0,0.00038356,120]
[336490584,1724877234677,-500.0,0.00038356,120]
[336490585,1724877234704,-500.0,0.00038356,120]
[336490586,1724877234735,-500.0,0.00038356,120]
[336490587,1724877234761,-2200.34,0.00038356,120]
[336490588,1724877234788,-409.37981666,0.00038356,120]
[336490589,1724877234816,-2000.0,0.00038356,120]
[336490590,1724877234844,-3349.22,0.00038356,120]
[336490591,1724877234871,-5137.4,0.00038356,120]
[336490592,1724877234898,-1074.98,0.00038356,120]
[336490593,1724877234926,-4084.51,0.00038356,120]
[336490594,1724877234953,-500.0,0.00038356,120]
[336490595,1724877234981,-5733.23,0.00038356,120]
[336490596,1724877235009,-1521.27,0.00038356,120]
[336490597,1724877235035,-1698.16,0.00038356,120]
[336490598,1724877235060,-500.0,0.00038356,120]
[336490599,1724877235291,-500.0,0.00038356,120]
[336490600,1724877235326,-1500.0,0.00038356,120]
[336490601,1724877235358,-4196.08,0.00038356,120]
[336490602,1724877235390,-500.0,0.00038356,120]
[336490603,1724877235423,-1115.8,0.00038356,120]
[336490604,1724877235448,-511.05899056,0.00038356,120]
[336490605,1724877235476,-500.0,0.00038356,120]
[336490606,1724877235503,-500.0,0.00038356,120]
[336490607,1724877235529,-1272.36,0.00038356,120]
[336490608,1724877235556,-506.10271541,0.00038356,120]
[336490609,1724877235584,-557.46,0.00038356,120]
[336490610,1724877235612,-1678.18,0.00038356,120]
[336490611,1724877235640,-500.0,0.00038356,120]
[336490612,1724877235670,-500.0,0.00038356,120]
[336490613,1724877235698,-2122.28,0.00038356,120]
[336490614,1724877235725,-974.29,0.00038356,120]
[336490615,1724877235754,-897.55,0.00038356,120]
[336490616,1724877235782,-516.88599397,0.00038356,120]
[336490617,1724877235809,-1511.65,0.00038356,120]
[336490618,1724877235840,-1456.57,0.00038356,120]
[336490619,1724877235867,-504.83948933,0.00038356,120]
[336490620,1724877235896,-17126.44,0.00038356,120]
[336490621,1724877235923,-494.7534399,0.00038356,120]
[336490622,1724877235951,-2621.51,0.00038356,120]
[336490623,1724877235978,-500.0,0.00038356,120]
[336490624,1724877236005,-544.19,0.00038356,120]
[336490625,1724877236030,-500.0,0.00038356,120]
[336490626,1724877236056,-525.53558012,0.00038356,120]
[336490627,1724877236082,-500.0,0.00038356,120]
[336490628,1724877236108,-561.34,0.00038356,120]
[336490629,1724877236135,-500.0,0.00038356,120]
[336490630,1724877236165,-500.0,0.00038356,120]
[336490631,1724877236192,-500.0,0.00038356,120]
[336490632,1724877236218,-500.0,0.00038356,120]
[336490633,1724877236246,-500.0,0.00038356,120]
[336490634,1724877236274,-523.06748876,0.00038356,120]
[336490635,1724877236299,-500.0,0.00038356,120]
[336490636,1724877236327,-500.0,0.00038356,120]
[336490637,1724877236352,-689.62,0.00038356,120]
[336490638,1724877236379,-1309.44,0.00038356,120]
[336490639,1724877236409,-3310.45,0.00038356,120]
[336490640,1724877236435,-503.66,0.00038356,120]
[336490641,1724877236463,-2035.22,0.00038356,120]
[336490642,1724877236490,-500.0,0.00038356,120]
[336490643,1724877236518,-500.0,0.00038356,120]
[336490644,1724877236546,-1041.49,0.00038356,120]
[336490645,1724877236574,-500.0,0.00038356,120]
[336490646,1724877236602,-506.15493001,0.00038356,120]
[336490647,1724877236630,-1131.52,0.00038356,120]
[336490648,1724877236670,-500.0,0.00038356,120]
[336490649,1724877236699,-500.0,0.00038356,120]
[336490650,1724877236725,-500.0,0.00038356,120]
[336490651,1724877236751,-500.0,0.00038356,120]
[336490652,1724877236777,-500.0,0.00038356,120]
[336490653,1724877236803,-2059.78,0.00038356,120]
[336490654,1724877236829,-2499.65,0.00038356,120]
[336490655,1724877236857,-1829.13,0.00038356,120]
[336490656,1724877236884,-4633.92,0.00038356,120]
[336490657,1724877236917,-500.0,0.00038356,120]
[336490658,1724877236943,-1150.99,0.00038356,120]
[336490659,1724877236970,-500.0,0.00038356,120]
[336490660,1724877236995,-502.4682739,0.00038356,120]
[336490661,1724877237023,-1780.92,0.00038356,120]
[336490662,1724877237048,-886.81,0.00038356,120]
[336490663,1724877237074,-1294.98,0.00038356,120]
[336490664,1724877237100,-1458.79,0.00038356,120]
[336490665,1724877237126,-500.0,0.00038356,120]
[336490666,1724877237153,-748.82,0.00038356,120]
[336490667,1724877237178,-1317.17,0.00038356,120]
[336490668,1724877237205,-2204.82,0.00038356,120]
[336490669,1724877237231,-1871.0,0.00038356,120]
[336490670,1724877237257,-6877.51,0.00038356,120]
[336490671,1724877237284,-500.0,0.00038356,120]
[336490672,1724877237312,-188.53372578,0.00038356,120]
[336490673,1724877237343,-500.0,0.00038356,120]
[336490674,1724877237372,-500.0,0.00038356,120]
[336490675,1724877237401,-718.53,0.00038356,120]
[336490676,1724877237428,-500.0,0.00038356,120]
[336490677,1724877237454,-500.0,0.00038356,120]
[336490678,1724877237480,-500.0,0.00038356,120]
[336490679,1724877237506,-500.0,0.00038356,120]
[336490680,1724877237533,-3968.23,0.00038356,120]
[336490681,1724877237560,-500.0,0.00038356,120]
[336490682,1724877237588,-987.58,0.00038356,120]
[336490683,1724877237615,-500.0,0.00038356,120]
[336490684,1724877237641,-731.3,0.00038356,120]
[336490685,1724877237672,-2887.26,0.00038356,120]
[336490686,1724877237703,-500.0,0.00038356,120]
[336490687,1724877237733,-2580.51,0.00038356,120]
[336490688,1724877237763,-564.95,0.00038356,120]
[336490689,1724877237794,-4353.16,0.00038356,120]
[336490690,1724877237825,-2436.69,0.00038356,120]
[336490691,1724877237854,-598.75,0.00038356,120]
[336490692,1724877237882,-500.0,0.00038356,120]
[336490693,1724877237912,-500.0,0.00038356,120]
[336490694,1724877237942,-256.8499873,0.00038356,120]
[336490695,1724877237976,-1753.14,0.00038356,120]
[336490696,1724877238006,-500.0,0.00038356,120]
[336490697,1724877238036,-2160.29,0.00038356,120]
[336490698,1724877238066,-500.0,0.00038356,120]
[336490699,1724877238095,-1295.45,0.00038356,120]
[336490700,1724877238124,-940.03,0.00038356,120]
[336490701,1724877238152,-500.0,0.00038356,120]
[336490702,1724877238181,-500.0,0.00038356,120]
[336490703,1724877238210,-500.0,0.00038356,120]
[336490704,1724877238404,-500.0,0.00038356,120]
[336490705,1724877238468,-1464.39,0.00038356,120]
[336490706,1724877238497,-1665.31,0.00038356,120]
[336490707,1724877238530,-500.0,0.00038356,120]
[336490708,1724877238557,-500.0,0.00038356,120]
[336490709,1724877238584,-1479.05,0.00038356,120]
[336490710,1724877238613,-532.03446349,0.00038356,120]
[336490711,1724877238642,-3663.4,0.00038356,120]
[336490712,1724877238675,-579.87,0.00038356,120]
[336490713,1724877238703,-500.0,0.00038356,120]
[336490714,1724877238731,-1448.28,0.00038356,120]
[336490715,1724877238761,-509.62523643,0.00038356,120]
[336490716,1724877238792,-1173.63,0.00038356,120]
[336490717,1724877238821,-500.0,0.00038356,120]
[336490718,1724877238850,-500.0,0.00038356,120]
[336490719,1724877238880,-2126.26,0.00038356,120]
[336490720,1724877238910,-641.07,0.00038356,120]
[336490721,1724877238941,-2402.21,0.00038356,120]
[336490722,1724877238971,-2026.3,0.00038356,120]
[336490723,1724877238999,-1443.61,0.00038356,120]
[336490724,1724877239028,-500.0,0.00038356,120]
[336490725,1724877239056,-500.0,0.00038356,120]
[336490726,1724877239083,-500.0,0.00038356,120]
[336490727,1724877239111,-7184.43,0.00038356,120]
[336490728,1724877239139,-500.0,0.00038356,120]
[336490729,1724877239168,-625.56,0.00038356,120]
[336490730,1724877239195,-500.0,0.00038356,120]
[336490731,1724877239224,-2255.03,0.00038356,120]
[336490732,1724877239251,-500.0,0.00038356,120]
[336490733,1724877239278,-1783.52,0.00038356,120]
[336490734,1724877239307,-500.0,0.00038356,120]
[336490735,1724877239338,-2904.96,0.00038356,120]
[336490736,1724877239367,-1077.38,0.00038356,120]
[336490737,1724877239397,-500.0,0.00038356,120]
[336490738,1724877239425,-2594.53,0.00038356,120]
[336490739,1724877239453,-2733.19,0.00038356,120]
[336490740,1724877239481,-2184.71,0.00038356,120]
[336490741,1724877239509,-1133.31,0.00038356,120]
[336490742,1724877239537,-500.0,0.00038356,120]
[336490743,1724877239565,-500.0,0.00038356,120]
[336490744,1724877239594,-500.0,0.00038356,120]
[336490745,1724877239626,-500.0,0.00038356,120]
[336490746,1724877239655,-500.0,0.00038356,120]
[336490747,1724877239684,-500.0,0.00038356,120]
[336490748,1724877239713,-500.0,0.00038356,120]
[336490749,1724877239742,-341.49474257,0.00038356,120]
[336490750,1724877239772,-500.0,0.00038356,120]
[336490751,1724877239801,-500.0,0.00038356,120]
[336490752,1724877239830,-500.0,0.00038356,120]
[336490753,1724877239859,-2580.1,0.00038356,120]
[336490754,1724877239889,-1142.51,0.00038356,120]
[336490755,1724877239920,-500.0,0.00038356,120]
[336490756,1724877239950,-18028.59,0.00038356,120]
[336490757,1724877239979,-500.0,0.00038356,120]
[336490758,1724877240009,-682.97,0.00038356,120]
[336490759,1724877240040,-3306.78,0.00038356,120]
[336490760,1724877240070,-1188.73,0.00038356,120]
[336490761,1724877240099,-2156.16,0.00038356,120]
[336490762,1724877240129,-1339.62,0.00038356,120]
[336490763,1724877240160,-500.0,0.00038356,120]
[336490764,1724877240191,-500.0,0.00038356,120]
[336490765,1724877240221,-1976.29,0.00038356,120]
[336490766,1724877240253,-997.35,0.00038356,120]
[336490767,1724877240285,-528.81068313,0.00038356,120]
[336490768,1724877240318,-3829.98,0.00038356,120]
[336490769,1724877240353,-500.0,0.00038356,120]
[336490770,1724877240385,-1960.37,0.00038356,120]
[336490771,1724877240421,-5844.59,0.00038356,120]
[336490772,1724877240452,-500.0,0.00038356,120]
[336490773,1724877240481,-500.0,0.00038356,120]
[336490774,1724877240512,-4563.0,0.00038356,120]
[336490775,1724877240542,-1455.74,0.00038356,120]
[336490776,1724877240574,-500.0,0.00038356,120]
[336490777,1724877240605,-500.0,0.00038356,120]
[336490778,1724877240637,-2730.9,0.00038356,120]
[336490779,1724877240675,-655.82,0.00038356,120]
[336490780,1724877240711,-512.34638223,0.00038356,120]
[336490781,1724877240745,-818.65,0.00038356,120]
[336490782,1724877240777,-500.0,0.00038356,120]
[336490783,1724877240810,-1294.35,0.00038356,120]
[336490784,1724877240843,-500.0,0.00038356,120]
[336490785,1724877240876,-500.0,0.00038356,120]
[336490786,1724877240915,-1830.38,0.00038356,120]
[336490787,1724877240947,-500.0,0.00038356,120]
[336490788,1724877240978,-1328.63,0.00038356,120]
[336490789,1724877241011,-897.67,0.00038356,120]
[336490790,1724877241043,-1231.21,0.00038356,120]
[336490791,1724877241074,-804.49,0.00038356,120]
[336490792,1724877241104,-501.97299354,0.00038356,120]
[336490793,1724877241135,-896.95,0.00038356,120]
[336490794,1724877241170,-1374.03,0.00038356,120]
[336490795,1724877241200,-541.10757429,0.00038356,120]
[336490796,1724877241229,-555.45,0.00038356,120]
[336490797,1724877241260,-500.0,0.00038356,120]
[336490798,1724877241292,-1077.75,0.00038356,120]
[336490799,1724877241327,-1293.02,0.00038356,120]
[336490800,1724877241358,-498.58316104,0.00038356,120]
[336490801,1724877241389,-710.04,0.00038356,120]
[336490802,1724877241426,-542.69,0.00038356,120]
[336490803,1724877241455,-991.56,0.00038356,120]
[336490804,1724877241483,-2302.8,0.00038356,120]
[336490805,1724877241516,-2439.67,0.00038356,120]
[336490806,1724877241548,-500.0,0.00038356,120]
[336490807,1724877241578,-1499.11,0.00038356,120]
[336490808,1724877241608,-500.0,0.00038356,120]
[336490809,1724877241844,-1852.89,0.00038356,120]
[336490810,1724877241876,-500.0,0.00038356,120]
[336490811,1724877241911,-500.0,0.00038356,120]
[336490812,1724877241942,-2618.15,0.00038356,120]
[336490813,1724877241974,-5386.08,0.00038356,120]
[336490814,1724877242006,-500.0,0.00038356,120]
[336490815,1724877242037,-500.0,0.00038356,120]
[336490816,1724877242068,-500.0,0.00038356,120]
[336490817,1724877242100,-1644.96,0.00038356,120]
[336490818,1724877242131,-712.35,0.00038356,120]
[336490819,1724877242162,-954.07,0.00038356,120]
[336490820,1724877242192,-1093.21,0.00038356,120]
[336490821,1724877242222,-1694.03,0.00038356,120]
[336490822,1724877242251,-500.0,0.00038356,120]
[336490823,1724877242281,-2493.11,0.00038356,120]
[336490824,1724877242313,-500.0,0.00038356,120]
[336490825,1724877242345,-761.08,0.00038356,120]
[336490826,1724877242377,-4954.89,0.00038356,120]
[336490827,1724877242409,-1918.55,0.00038356,120]
[336490828,1724877242440,-598.44,0.00038356,120]
[336490829,1724877242472,-884.88,0.00038356,120]
[336490830,1724877242507,-500.0,0.00038356,120]
[336490831,1724877242545,-1004.53,0.00038356,120]
[336490832,1724877242577,-1938.1,0.00038356,120]
[336490833,1724877242608,-500.0,0.00038356,120]
[336490834,1724877242639,-800.46,0.00038356,120]
[336490835,1724877242677,-2938.12,0.00038356,120]
[336490836,1724877242709,-948.94,0.00038356,120]
[336490837,1724877242741,-621.57,0.00038356,120]
[336490838,1724877242770,-1274.02,0.00038356,120]
[336490839,1724877242802,-696.68,0.00038356,120]
[336490840,1724877242834,-500.0,0.00038356,120]
[336490841,1724877242866,-3146.09,0.00038356,120]
[336490842,1724877242897,-500.0,0.00038356,120]
[336490843,1724877242936,-500.0,0.00038356,120]
[336490844,1724877242974,-500.0,0.00038356,120]
[336490845,1724877243006,-1462.93,0.00038356,120]
[336490846,1724877243039,-1663.11,0.00038356,120]
[336490847,1724877243073,-1619.63,0.00038356,120]
[336490848,1724877243107,-503.87,0.00038356,120]
[336490849,1724877243142,-500.0,0.00038356,120]
[336490850,1724877243182,-500.0,0.00038356,120]
[336490851,1724877243215,-500.0,0.00038356,120]
[336490852,1724877243247,-1404.69,0.00038356,120]
[336490853,1724877243279,-3705.42,0.00038356,120]
[336490854,1724877243314,-500.0,0.00038356,120]
[336490855,1724877243355,-500.0,0.00038356,120]
[336490856,1724877243386,-500.0,0.00038356,120]
[336490857,1724877243425,-2358.04,0.00038356,120]
[336490858,1724877243458,-3826.01,0.00038356,120]
[336490859,1724877243490,-500.0,0.00038356,120]
[336490860,1724877243522,-500.0,0.00038356,120]
[336490861,1724877243555,-1722.83,0.00038356,120]
[336490862,1724877243587,-504.17830997,0.00038356,120]
[336490863,1724877243619,-500.0,0.00038356,120]
[336490864,1724877243655,-1062.49,0.00038356,120]